[Event "Early-Titled-Tuesday-Blitz-February-13-2024"]
[Site "Chess.com"]
[Date "2024.02.13"]
[Round "10"]
[White "SharapovEvgeny"]
[Black "CarlosjPineror"]
[Result "1-0"]
[WhiteElo "2569"]
[BlackElo "2693"]
[TimeControl "180+1"]
[EndTime "9:57:40 PST"]
[Termination "SharapovEvgeny won by resignation"]

1. e4 {[%clk 0:02:59.6]} 1... c5 {[%clk 0:03:00.2]} 2. Nf3 {[%clk 0:02:59.5]}
2... e6 {[%clk 0:03:00.4]} 3. c4 {[%clk 0:02:58.4]} 3... a6 {[%clk 0:03:00.3]}
4. Nc3 {[%clk 0:02:58.4]} 4... Qc7 {[%clk 0:02:59.9]} 5. Be2 {[%clk 0:02:58.2]}
5... Nf6 {[%clk 0:02:59.9]} 6. O-O {[%clk 0:02:58]} 6... Nc6 {[%clk 0:02:58.6]}
7. Re1 {[%clk 0:02:57.9]} 7... Ng4 {[%clk 0:02:58.5]} 8. g3 {[%clk 0:02:51.1]}
8... h5 {[%clk 0:02:58.2]} 9. d4 {[%clk 0:02:46.9]} 9... cxd4 {[%clk 0:02:55.5]}
10. Nxd4 {[%clk 0:02:46.6]} 10... Nxf2 {[%clk 0:02:46.1]} 11. Nxe6 {[%clk
0:02:26.6]} 11... dxe6 {[%clk 0:02:42.7]} 12. Kxf2 {[%clk 0:02:26.6]} 12... h4
{[%clk 0:02:31.3]} 13. Bf4 {[%clk 0:02:26.1]} 13... hxg3+ {[%clk 0:02:01.5]} 14.
hxg3 {[%clk 0:02:25.5]} 14... Qb6+ {[%clk 0:01:56]} 15. Kg2 {[%clk 0:02:21.5]}
15... e5 {[%clk 0:01:48.5]} 16. Nd5 {[%clk 0:02:19.9]} 16... Bh3+ {[%clk
0:01:48]} 17. Kf3 {[%clk 0:02:04.2]} 17... Nd4+ {[%clk 0:01:47.5]} 18. Kf2
{[%clk 0:01:57.2]} 18... Qxb2 {[%clk 0:00:29.8]} 19. Nc7+ {[%clk 0:01:49.1]}
19... Kd7 {[%clk 0:00:26.7]} 20. Bxe5 {[%clk 0:01:38]} 20... Bc5 {[%clk
0:00:23.7]} 21. Rb1 {[%clk 0:01:37.8]} 21... Qc3 {[%clk 0:00:19.1]} 22. Rb3
{[%clk 0:01:36.6]} 22... Kc8 {[%clk 0:00:06.9]} 23. Rxc3 {[%clk 0:01:27]} 23...
Nxe2+ {[%clk 0:00:07.5]} 24. Kxe2 {[%clk 0:01:20.6]} 24... Re8 {[%clk
0:00:06.1]} 25. Nxe8 {[%clk 0:01:18.3]} 25... Bg4+ {[%clk 0:00:04.8]} 26. Rf3
{[%clk 0:01:18.1]} 1-0

[Event "Early-Titled-Tuesday-Blitz-February-13-2024"]
[Site "Chess.com"]
[Date "2024.02.13"]
[Round "10"]
[White "Oleksandr_Bortnyk"]
[Black "MaxLeto"]
[Result "1-0"]
[WhiteElo "3043"]
[BlackElo "2550"]
[TimeControl "180+1"]
[EndTime "9:57:45 PST"]
[Termination "Oleksandr_Bortnyk won on time"]

1. f3 {[%clk 0:02:52.2]} 1... d5 {[%clk 0:02:56.5]} 2. c3 {[%clk 0:02:52]} 2...
e5 {[%clk 0:02:56.3]} 3. g3 {[%clk 0:02:47.2]} 3... c5 {[%clk 0:02:56.5]} 4. Nh3
{[%clk 0:02:47.2]} 4... Nc6 {[%clk 0:02:57.4]} 5. Nf2 {[%clk 0:02:47.7]} 5...
Be6 {[%clk 0:02:57.2]} 6. d3 {[%clk 0:02:48.2]} 6... h5 {[%clk 0:02:53.8]} 7. h4
{[%clk 0:02:47.3]} 7... Qd7 {[%clk 0:02:53.5]} 8. e4 {[%clk 0:02:47.7]} 8... Bd6
{[%clk 0:02:51.3]} 9. Qe2 {[%clk 0:02:46.5]} 9... Nge7 {[%clk 0:02:51]} 10. Bh3
{[%clk 0:02:45.2]} 10... O-O-O {[%clk 0:02:46.9]} 11. Bxe6 {[%clk 0:02:43.6]}
11... Qxe6 {[%clk 0:02:34.4]} 12. Na3 {[%clk 0:02:44.5]} 12... f5 {[%clk
0:02:24.8]} 13. Bg5 {[%clk 0:02:43.7]} 13... Rdf8 {[%clk 0:02:20.3]} 14. O-O-O
{[%clk 0:02:41.2]} 14... fxe4 {[%clk 0:01:36.5]} 15. fxe4 {[%clk 0:02:39.2]}
15... d4 {[%clk 0:01:36.8]} 16. c4 {[%clk 0:02:36.8]} 16... Rf7 {[%clk
0:01:26.1]} 17. Nc2 {[%clk 0:02:31.3]} 17... Rhf8 {[%clk 0:01:22.9]} 18. Nh3
{[%clk 0:02:28]} 18... Qg4 {[%clk 0:01:11.5]} 19. Qg2 {[%clk 0:02:20.4]} 19...
Ng8 {[%clk 0:01:02.8]} 20. a3 {[%clk 0:02:07]} 20... Rf3 {[%clk 0:00:50.2]} 21.
Rhg1 {[%clk 0:02:06.9]} 21... Nf6 {[%clk 0:00:34.6]} 22. Ne1 {[%clk 0:01:53.7]}
22... Re3 {[%clk 0:00:24.4]} 23. Bxe3 {[%clk 0:01:44.7]} 23... dxe3 {[%clk
0:00:25.3]} 24. Nc2 {[%clk 0:01:43.3]} 24... e2 {[%clk 0:00:05.5]} 25. Rde1
{[%clk 0:01:43]} 25... Nd4 {[%clk 0:00:05.8]} 26. Nxd4 {[%clk 0:01:42.7]} 26...
exd4 {[%clk 0:00:06.2]} 27. Nf2 {[%clk 0:01:28.1]} 27... Qd7 {[%clk 0:00:03.7]}
28. Rxe2 {[%clk 0:01:28]} 28... Qa4 {[%clk 0:00:03.9]} 29. e5 {[%clk 0:01:26.4]}
29... Re8 {[%clk 0:00:03.4]} 30. Rge1 {[%clk 0:01:25.9]} 1-0

[Event "Early-Titled-Tuesday-Blitz-February-13-2024"]
[Site "Chess.com"]
[Date "2024.02.13"]
[Round "10"]
[White "DAVIDHDZSTS"]
[Black "Vigg-Sama"]
[Result "1-0"]
[WhiteElo "1924"]
[BlackElo "2227"]
[TimeControl "180+1"]
[EndTime "9:57:45 PST"]
[Termination "DAVIDHDZSTS won by resignation"]

1. d4 {[%clk 0:02:34.7]} 1... Nf6 {[%clk 0:02:57.1]} 2. Nc3 {[%clk 0:02:34.2]}
2... d5 {[%clk 0:02:56.6]} 3. Bf4 {[%clk 0:02:33.9]} 3... c5 {[%clk 0:02:55.3]}
4. e4 {[%clk 0:02:33.9]} 4... dxe4 {[%clk 0:02:35.7]} 5. dxc5 {[%clk 0:02:33.3]}
5... Qxd1+ {[%clk 0:02:33.8]} 6. Rxd1 {[%clk 0:02:34.2]} 6... Bd7 {[%clk
0:02:30.1]} 7. a3 {[%clk 0:02:29.7]} 7... Nc6 {[%clk 0:02:21.4]} 8. b4 {[%clk
0:02:29]} 8... a6 {[%clk 0:02:18.1]} 9. Nge2 {[%clk 0:02:23.4]} 9... e5 {[%clk
0:02:14.6]} 10. Be3 {[%clk 0:02:21.1]} 10... Be7 {[%clk 0:02:07.4]} 11. Ng3
{[%clk 0:02:19.6]} 11... Ng4 {[%clk 0:01:59]} 12. Ncxe4 {[%clk 0:02:11.9]} 12...
Nxe3 {[%clk 0:01:58.9]} 13. fxe3 {[%clk 0:02:12.8]} 13... Bg4 {[%clk 0:01:55.6]}
14. Be2 {[%clk 0:02:07.5]} 14... Bxe2 {[%clk 0:01:54.3]} 15. Kxe2 {[%clk
0:02:08.4]} 15... Rd8 {[%clk 0:01:54.3]} 16. Nf5 {[%clk 0:02:04.7]} 16... Rxd1
{[%clk 0:01:46.8]} 17. Rxd1 {[%clk 0:02:05.6]} 17... a5 {[%clk 0:01:19.1]} 18.
c3 {[%clk 0:02:01.3]} 18... Nd8 {[%clk 0:01:13.6]} 19. Nxg7+ {[%clk 0:01:38]}
19... Kf8 {[%clk 0:01:13.5]} 20. Nf5 {[%clk 0:01:38.2]} 20... Rg8 {[%clk
0:01:12.2]} 21. g3 {[%clk 0:01:37.8]} 21... h5 {[%clk 0:01:11.1]} 22. Rd7 {[%clk
0:01:16]} 22... Nc6 {[%clk 0:00:56.9]} 23. Rxb7 {[%clk 0:01:04]} 23... h4 {[%clk
0:00:55.6]} 24. Rc7 {[%clk 0:00:55.5]} 24... axb4 {[%clk 0:00:50.8]} 25. Rxc6
{[%clk 0:00:40.3]} 25... bxa3 {[%clk 0:00:49.2]} 26. Rc8+ {[%clk 0:00:38.8]} 1-0

[Event "Early-Titled-Tuesday-Blitz-February-13-2024"]
[Site "Chess.com"]
[Date "2024.02.13"]
[Round "10"]
[White "m_ezat"]
[Black "Hilary46"]
[Result "1-0"]
[WhiteElo "2449"]
[BlackElo "2609"]
[TimeControl "180+1"]
[EndTime "9:57:53 PST"]
[Termination "m_ezat won by resignation"]

1. e4 {[%clk 0:03:00.9]} 1... e5 {[%clk 0:02:56.8]} 2. Nf3 {[%clk 0:02:59.4]}
2... Nc6 {[%clk 0:02:57.4]} 3. Bb5 {[%clk 0:02:58.9]} 3... a6 {[%clk 0:02:57.3]}
4. Ba4 {[%clk 0:02:58.3]} 4... Nf6 {[%clk 0:02:57.9]} 5. O-O {[%clk 0:02:56.9]}
5... Nxe4 {[%clk 0:02:58.4]} 6. Re1 {[%clk 0:02:55.6]} 6... Nc5 {[%clk
0:02:57.6]} 7. Bxc6 {[%clk 0:02:54.7]} 7... dxc6 {[%clk 0:02:58.5]} 8. d4 {[%clk
0:02:54.7]} 8... Ne6 {[%clk 0:02:57.5]} 9. Nxe5 {[%clk 0:02:51.2]} 9... Be7
{[%clk 0:02:57.9]} 10. c3 {[%clk 0:02:50.2]} 10... O-O {[%clk 0:02:57.7]} 11.
Nd2 {[%clk 0:02:47.8]} 11... c5 {[%clk 0:02:58]} 12. dxc5 {[%clk 0:02:43.3]}
12... Nxc5 {[%clk 0:02:52.6]} 13. Ndf3 {[%clk 0:02:38.4]} 13... Qxd1 {[%clk
0:02:43.2]} 14. Rxd1 {[%clk 0:02:37.4]} 14... f6 {[%clk 0:02:40.8]} 15. Nc4
{[%clk 0:02:33.7]} 15... Bg4 {[%clk 0:02:40.5]} 16. Bf4 {[%clk 0:02:26.7]} 16...
Ne6 {[%clk 0:02:33.3]} 17. Bg3 {[%clk 0:02:25.4]} 17... Bxf3 {[%clk 0:02:32.2]}
18. gxf3 {[%clk 0:02:25]} 18... Rfd8 {[%clk 0:02:32.3]} 19. Re1 {[%clk
0:02:22.3]} 19... Kf7 {[%clk 0:02:32.6]} 20. Re2 {[%clk 0:02:20.3]} 20... Re8
{[%clk 0:02:18.3]} 21. Rae1 {[%clk 0:02:16.6]} 21... Bf8 {[%clk 0:02:17.7]} 22.
f4 {[%clk 0:02:13.1]} 22... Nc5 {[%clk 0:01:50.3]} 23. f5 {[%clk 0:02:09.3]}
23... b5 {[%clk 0:01:39.6]} 24. Na5 {[%clk 0:02:06.2]} 24... Nd3 {[%clk
0:01:36.9]} 25. Rxe8 {[%clk 0:02:04.8]} 25... Rxe8 {[%clk 0:01:37.8]} 26. Rd1
{[%clk 0:01:51.9]} 26... Nxb2 {[%clk 0:01:35.5]} 27. Rd7+ {[%clk 0:01:50.2]}
27... Re7 {[%clk 0:01:35.9]} 28. Rd8 {[%clk 0:01:47.4]} 28... Na4 {[%clk
0:01:26.7]} 29. Nc6 {[%clk 0:01:46]} 29... Re1+ {[%clk 0:01:26.6]} 30. Kg2
{[%clk 0:01:45.6]} 30... Nxc3 {[%clk 0:00:32.4]} 31. Ra8 {[%clk 0:01:43.9]}
31... Nd5 {[%clk 0:00:22.3]} 32. Nd8+ {[%clk 0:01:42.1]} 32... Kg8 {[%clk
0:00:19.3]} 33. Ne6 {[%clk 0:01:42.1]} 33... Rxe6 {[%clk 0:00:19.8]} 34. fxe6
{[%clk 0:01:41.9]} 34... g6 {[%clk 0:00:13.8]} 35. Bxc7 {[%clk 0:01:38.9]} 35...
Kg7 {[%clk 0:00:14]} 36. Bg3 {[%clk 0:01:33.3]} 36... Nb4 {[%clk 0:00:12.7]} 37.
Rxf8 {[%clk 0:01:30.8]} 37... Kxf8 {[%clk 0:00:12.1]} 38. Bd6+ {[%clk
0:01:30.6]} 1-0

[Event "Early-Titled-Tuesday-Blitz-February-13-2024"]
[Site "Chess.com"]
[Date "2024.02.13"]
[Round "10"]
[White "jocmil"]
[Black "dropstoneDP"]
[Result "1/2-1/2"]
[WhiteElo "2759"]
[BlackElo "3044"]
[TimeControl "180+1"]
[EndTime "9:57:55 PST"]
[Termination "Game drawn by repetition"]

1. e4 {[%clk 0:03:00.9]} 1... e5 {[%clk 0:03:00.1]} 2. Bc4 {[%clk 0:03:00.9]}
2... Nf6 {[%clk 0:03:00.5]} 3. d3 {[%clk 0:03:01.4]} 3... c6 {[%clk 0:03:01.1]}
4. Nf3 {[%clk 0:03:01.6]} 4... d5 {[%clk 0:03:01.7]} 5. Bb3 {[%clk 0:03:02.1]}
5... Bb4+ {[%clk 0:03:00.4]} 6. Bd2 {[%clk 0:02:59.6]} 6... Bxd2+ {[%clk
0:02:58.1]} 7. Nbxd2 {[%clk 0:03:00.5]} 7... a5 {[%clk 0:02:50.2]} 8. a4 {[%clk
0:02:53.8]} 8... Nbd7 {[%clk 0:02:46.4]} 9. O-O {[%clk 0:02:52.6]} 9... O-O
{[%clk 0:02:46.2]} 10. Re1 {[%clk 0:02:49.8]} 10... Re8 {[%clk 0:02:44.7]} 11.
c3 {[%clk 0:02:43.3]} 11... Nc5 {[%clk 0:02:15.1]} 12. Bc2 {[%clk 0:02:38.6]}
12... Bg4 {[%clk 0:02:03.4]} 13. Qe2 {[%clk 0:02:31.1]} 13... Qd6 {[%clk
0:01:59.6]} 14. Qe3 {[%clk 0:02:14.9]} 14... Rad8 {[%clk 0:01:54.6]} 15. h3
{[%clk 0:02:01.1]} 15... Bh5 {[%clk 0:01:39.1]} 16. Nh4 {[%clk 0:01:49.7]} 16...
Bg6 {[%clk 0:01:33.8]} 17. Nxg6 {[%clk 0:01:47.3]} 17... hxg6 {[%clk 0:01:34.7]}
18. Nf3 {[%clk 0:01:47.6]} 18... b6 {[%clk 0:01:23.4]} 19. Rad1 {[%clk
0:01:36.8]} 19... Qc7 {[%clk 0:01:16.3]} 20. Qg5 {[%clk 0:01:34.4]} 20... dxe4
{[%clk 0:01:13.3]} 21. dxe4 {[%clk 0:01:34.2]} 21... Rxd1 {[%clk 0:01:14]} 22.
Rxd1 {[%clk 0:01:34.2]} 22... Ncxe4 {[%clk 0:01:13.8]} 23. Qh4 {[%clk
0:01:27.8]} 23... Nc5 {[%clk 0:01:07.3]} 24. Ng5 {[%clk 0:01:26.1]} 24... Ne6
{[%clk 0:00:59.8]} 25. Bb3 {[%clk 0:01:17.7]} 25... Nxg5 {[%clk 0:00:53.9]} 26.
Qxg5 {[%clk 0:01:18.6]} 26... Kf8 {[%clk 0:00:43.8]} 27. Qh4 {[%clk 0:01:18.1]}
27... Kg8 {[%clk 0:00:31.2]} 28. Qg5 {[%clk 0:01:17.4]} 28... Kf8 {[%clk
0:00:17.3]} 29. Qh4 {[%clk 0:01:17.6]} 29... Ke7 {[%clk 0:00:12]} 30. Qc4 {[%clk
0:01:15.1]} 30... Kf8 {[%clk 0:00:10.4]} 31. Qh4 {[%clk 0:01:14.5]} 1/2-1/2

[Event "Early-Titled-Tuesday-Blitz-February-13-2024"]
[Site "Chess.com"]
[Date "2024.02.13"]
[Round "10"]
[White "Antipov_Mikhail_Al"]
[Black "Bigfish1995"]
[Result "0-1"]
[WhiteElo "2960"]
[BlackElo "3173"]
[TimeControl "180+1"]
[EndTime "9:57:59 PST"]
[Termination "Bigfish1995 won by resignation"]

1. h3 {[%clk 0:02:56.5]} 1... Na6 {[%clk 0:02:50.2]} 2. e4 {[%clk 0:02:56.6]}
2... Nc5 {[%clk 0:02:47.1]} 3. Nc3 {[%clk 0:02:54.1]} 3... e5 {[%clk 0:02:41.2]}
4. Nf3 {[%clk 0:02:54.1]} 4... Nf6 {[%clk 0:02:35.1]} 5. Nxe5 {[%clk 0:02:24.5]}
5... d6 {[%clk 0:02:14.8]} 6. Bb5+ {[%clk 0:02:06.1]} 6... c6 {[%clk 0:01:49]}
7. Nxc6 {[%clk 0:02:06.5]} 7... bxc6 {[%clk 0:01:49.3]} 8. Bxc6+ {[%clk
0:02:07.4]} 8... Bd7 {[%clk 0:01:49.5]} 9. Bxa8 {[%clk 0:02:07.4]} 9... Qxa8
{[%clk 0:01:50.4]} 10. d3 {[%clk 0:02:06]} 10... d5 {[%clk 0:01:49.8]} 11. exd5
{[%clk 0:01:49.6]} 11... Nxd5 {[%clk 0:01:47.6]} 12. Qf3 {[%clk 0:01:48.4]}
12... Bc6 {[%clk 0:01:47.3]} 13. O-O {[%clk 0:01:19.7]} 13... Nxc3 {[%clk
0:01:44.8]} 14. Qe3+ {[%clk 0:01:16.1]} 14... Ne6 {[%clk 0:01:45.3]} 15. bxc3
{[%clk 0:01:14.8]} 15... Bxg2 {[%clk 0:01:42.8]} 16. Re1 {[%clk 0:01:15.3]}
16... Bd6 {[%clk 0:01:22.5]} 17. Qg5 {[%clk 0:00:57.9]} 17... Bxh3 {[%clk
0:01:11.2]} 18. Qxg7 {[%clk 0:00:57.3]} 18... Rf8 {[%clk 0:01:08.4]} 19. Re4
{[%clk 0:00:05.9]} 19... Bf5 {[%clk 0:00:59.9]} 20. Re2 {[%clk 0:00:01.8]} 20...
Kd7 {[%clk 0:00:52]} 0-1

[Event "Early-Titled-Tuesday-Blitz-February-13-2024"]
[Site "Chess.com"]
[Date "2024.02.13"]
[Round "10"]
[White "johnmez"]
[Black "Shodikulov_Jamshid1990"]
[Result "0-1"]
[WhiteElo "2268"]
[BlackElo "2371"]
[TimeControl "180+1"]
[EndTime "9:58:00 PST"]
[Termination "Shodikulov_Jamshid1990 won on time"]

1. d4 {[%clk 0:03:00.9]} 1... Nf6 {[%clk 0:02:59.1]} 2. c4 {[%clk 0:03:01.2]}
2... c5 {[%clk 0:02:59.4]} 3. d5 {[%clk 0:03:00.7]} 3... b5 {[%clk 0:02:59.8]}
4. a4 {[%clk 0:03:00.1]} 4... b4 {[%clk 0:02:58.3]} 5. Nd2 {[%clk 0:03:00.1]}
5... g6 {[%clk 0:02:58.5]} 6. e4 {[%clk 0:03:00]} 6... d6 {[%clk 0:02:58]} 7. f4
{[%clk 0:02:59.7]} 7... Bg7 {[%clk 0:02:57.6]} 8. Ngf3 {[%clk 0:03:00.2]} 8...
O-O {[%clk 0:02:56]} 9. Bd3 {[%clk 0:02:59.1]} 9... e6 {[%clk 0:02:54.8]} 10.
O-O {[%clk 0:02:58.5]} 10... exd5 {[%clk 0:02:54.8]} 11. exd5 {[%clk 0:02:56.6]}
11... Re8 {[%clk 0:02:54.5]} 12. Rb1 {[%clk 0:02:39.1]} 12... a5 {[%clk
0:02:52.4]} 13. b3 {[%clk 0:02:39.2]} 13... Ra7 {[%clk 0:02:52.8]} 14. Bb2
{[%clk 0:02:17.1]} 14... Rae7 {[%clk 0:02:50.6]} 15. h3 {[%clk 0:01:43.1]} 15...
Nbd7 {[%clk 0:02:44.1]} 16. Qc2 {[%clk 0:01:40]} 16... Bh6 {[%clk 0:02:40.3]}
17. f5 {[%clk 0:01:24]} 17... Nh5 {[%clk 0:02:35.8]} 18. fxg6 {[%clk 0:01:16.3]}
18... Be3+ {[%clk 0:02:33.9]} 19. Kh2 {[%clk 0:01:10.4]} 19... fxg6 {[%clk
0:02:31]} 20. Bxg6 {[%clk 0:01:05.1]} 20... Bf4+ {[%clk 0:02:26.4]} 21. Kg1
{[%clk 0:00:53.9]} 21... Be3+ {[%clk 0:02:26.1]} 22. Kh1 {[%clk 0:00:38.1]}
22... Ng3+ {[%clk 0:02:24.4]} 23. Kh2 {[%clk 0:00:38.6]} 23... Nxf1+ {[%clk
0:02:24.5]} 24. Rxf1 {[%clk 0:00:39.3]} 24... Ne5 {[%clk 0:02:16.8]} 25. Bxe8
{[%clk 0:00:31.4]} 25... Qxe8 {[%clk 0:02:07.6]} 26. Nxe5 {[%clk 0:00:31.3]}
26... dxe5 {[%clk 0:02:07.6]} 27. Ne4 {[%clk 0:00:31.1]} 27... Qg6 {[%clk
0:02:05.2]} 28. Nf6+ {[%clk 0:00:29.3]} 28... Kg7 {[%clk 0:02:05]} 29. Qxg6+
{[%clk 0:00:28.8]} 29... Kxg6 {[%clk 0:02:03.4]} 30. d6 {[%clk 0:00:23.3]} 30...
Rf7 {[%clk 0:02:00.9]} 31. Bxe5 {[%clk 0:00:11.6]} 31... Bg5 {[%clk 0:02:00.1]}
32. d7 {[%clk 0:00:05.7]} 32... Bxd7 {[%clk 0:01:59.9]} 33. Nxd7 {[%clk
0:00:03.2]} 33... Rxf1 {[%clk 0:02:00.6]} 34. Nxc5 {[%clk 0:00:03.5]} 34... Rf5
{[%clk 0:02:00.4]} 35. Bd4 {[%clk 0:00:03]} 35... Bf4+ {[%clk 0:01:59.8]} 36.
Kg1 {[%clk 0:00:02.7]} 36... Bg3 {[%clk 0:01:58.2]} 37. Nd3 {[%clk 0:00:02.2]}
37... Rf8 {[%clk 0:01:56.1]} 38. Bf2 {[%clk 0:00:02.3]} 38... Bxf2+ {[%clk
0:01:54.6]} 39. Nxf2 {[%clk 0:00:02.3]} 39... Re8 {[%clk 0:01:53.8]} 40. Nd3
{[%clk 0:00:02]} 40... Re3 {[%clk 0:01:53.7]} 41. Nc5 {[%clk 0:00:01.8]} 41...
Kf5 {[%clk 0:01:52.8]} 42. Kf2 {[%clk 0:00:02.1]} 42... Rc3 {[%clk 0:01:52.3]}
43. Ke2 {[%clk 0:00:02.4]} 43... Kf4 {[%clk 0:01:51.9]} 44. Kd2 {[%clk 0:00:02]}
44... Rg3 {[%clk 0:01:49.5]} 0-1

[Event "Early-Titled-Tuesday-Blitz-February-13-2024"]
[Site "Chess.com"]
[Date "2024.02.13"]
[Round "10"]
[White "ChessFanNM"]
[Black "Kunalm64"]
[Result "0-1"]
[WhiteElo "2317"]
[BlackElo "2512"]
[TimeControl "180+1"]
[EndTime "9:58:11 PST"]
[Termination "Kunalm64 won by checkmate"]

1. e4 {[%clk 0:02:58.7]} 1... c6 {[%clk 0:02:59.7]} 2. d4 {[%clk 0:02:57.7]}
2... d5 {[%clk 0:03:00.3]} 3. exd5 {[%clk 0:02:57.9]} 3... cxd5 {[%clk
0:03:01.2]} 4. Nf3 {[%clk 0:02:58.3]} 4... Nc6 {[%clk 0:03:00.3]} 5. c4 {[%clk
0:02:57.9]} 5... Nf6 {[%clk 0:02:59.9]} 6. Nc3 {[%clk 0:02:57.6]} 6... Be6
{[%clk 0:03:00.3]} 7. c5 {[%clk 0:02:48.7]} 7... Bg4 {[%clk 0:02:59.5]} 8. Bb5
{[%clk 0:02:47.8]} 8... e6 {[%clk 0:02:54]} 9. Qa4 {[%clk 0:02:45.4]} 9... Bxf3
{[%clk 0:02:36.8]} 10. Bxc6+ {[%clk 0:02:40.2]} 10... bxc6 {[%clk 0:02:37.7]}
11. Qxc6+ {[%clk 0:02:39]} 11... Nd7 {[%clk 0:02:38.1]} 12. gxf3 {[%clk
0:02:39]} 12... Be7 {[%clk 0:02:38]} 13. Bf4 {[%clk 0:02:32.6]} 13... O-O {[%clk
0:02:37.7]} 14. O-O {[%clk 0:02:32.6]} 14... Bf6 {[%clk 0:02:35.2]} 15. Rad1
{[%clk 0:02:27.3]} 15... a6 {[%clk 0:02:15.5]} 16. Rfe1 {[%clk 0:02:22]} 16...
h6 {[%clk 0:02:09.3]} 17. Na4 {[%clk 0:01:59.9]} 17... Bg5 {[%clk 0:01:44.6]}
18. Bg3 {[%clk 0:01:56.2]} 18... h5 {[%clk 0:01:41.7]} 19. Nb6 {[%clk
0:01:47.7]} 19... Ra7 {[%clk 0:01:38.7]} 20. Nxd7 {[%clk 0:01:36]} 20... Rxd7
{[%clk 0:01:37.6]} 21. Qxa6 {[%clk 0:01:32.9]} 21... h4 {[%clk 0:01:37.2]} 22.
Bd6 {[%clk 0:01:32.4]} 22... Be7 {[%clk 0:01:35.7]} 23. Bxe7 {[%clk 0:01:21.9]}
23... Qxe7 {[%clk 0:01:35.5]} 24. Kh1 {[%clk 0:01:20.5]} 24... h3 {[%clk
0:01:34.6]} 25. Rg1 {[%clk 0:01:19.7]} 25... Ra7 {[%clk 0:01:34.3]} 26. Qd3
{[%clk 0:01:15.1]} 26... Rxa2 {[%clk 0:01:34.7]} 27. Rg3 {[%clk 0:01:15.1]}
27... Rxb2 {[%clk 0:01:33.7]} 28. Rxh3 {[%clk 0:01:13]} 28... g6 {[%clk
0:01:34]} 29. Kg2 {[%clk 0:01:07.3]} 29... Ra8 {[%clk 0:01:29.2]} 30. Rg3 {[%clk
0:01:06.2]} 30... Raa2 {[%clk 0:01:27.9]} 31. Rf1 {[%clk 0:01:05.6]} 31... Qf6
{[%clk 0:01:25.5]} 32. Qe3 {[%clk 0:01:02.4]} 32... Re2 {[%clk 0:01:21.7]} 33.
Qb3 {[%clk 0:00:55.5]} 33... Qxd4 {[%clk 0:01:18.3]} 34. Qb8+ {[%clk 0:00:50.3]}
34... Kg7 {[%clk 0:01:17.5]} 35. Kh3 {[%clk 0:00:30.2]} 35... Rxf2 {[%clk
0:01:16.2]} 36. Rxf2 {[%clk 0:00:30.3]} 36... Qxf2 {[%clk 0:01:15.6]} 37. Qe5+
{[%clk 0:00:29.4]} 37... Kh7 {[%clk 0:01:14.6]} 38. Qf6 {[%clk 0:00:26.5]} 38...
Qxh2+ {[%clk 0:01:13.4]} 39. Kg4 {[%clk 0:00:26.8]} 39... Ra4+ {[%clk
0:01:11.1]} 40. f4 {[%clk 0:00:26.7]} 40... Qh5# {[%clk 0:01:10.4]} 0-1

[Event "Early-Titled-Tuesday-Blitz-February-13-2024"]
[Site "Chess.com"]
[Date "2024.02.13"]
[Round "10"]
[White "yuriydovzik"]
[Black "romulocardoso"]
[Result "0-1"]
[WhiteElo "2106"]
[BlackElo "2355"]
[TimeControl "180+1"]
[EndTime "9:58:12 PST"]
[Termination "romulocardoso won on time"]

1. Nf3 {[%clk 0:02:57.1]} 1... Nf6 {[%clk 0:02:51.6]} 2. b3 {[%clk 0:02:55.4]}
2... d5 {[%clk 0:02:51.1]} 3. Bb2 {[%clk 0:02:55]} 3... g6 {[%clk 0:02:51.6]} 4.
c4 {[%clk 0:02:49.2]} 4... dxc4 {[%clk 0:02:49.9]} 5. bxc4 {[%clk 0:02:47.9]}
5... Bg7 {[%clk 0:02:50.3]} 6. d3 {[%clk 0:02:40.7]} 6... O-O {[%clk 0:02:50.2]}
7. g3 {[%clk 0:02:37.9]} 7... c5 {[%clk 0:02:45.2]} 8. Bg2 {[%clk 0:02:36.3]}
8... Qb6 {[%clk 0:02:45.1]} 9. Bc3 {[%clk 0:02:27.3]} 9... Nc6 {[%clk
0:02:44.7]} 10. O-O {[%clk 0:02:24.9]} 10... Bg4 {[%clk 0:02:40]} 11. Nbd2
{[%clk 0:02:19.7]} 11... Rfd8 {[%clk 0:02:33.6]} 12. Rb1 {[%clk 0:02:16.9]}
12... Qc7 {[%clk 0:02:34.1]} 13. h3 {[%clk 0:02:09.1]} 13... Bxf3 {[%clk
0:02:33.6]} 14. Nxf3 {[%clk 0:02:02.5]} 14... Rac8 {[%clk 0:02:33.1]} 15. Qb3
{[%clk 0:01:55.3]} 15... b6 {[%clk 0:02:27.1]} 16. Qb2 {[%clk 0:01:51.8]} 16...
Qd7 {[%clk 0:02:11.2]} 17. Ne5 {[%clk 0:01:43]} 17... Nxe5 {[%clk 0:01:59.9]}
18. Bxe5 {[%clk 0:01:42.3]} 18... Qe6 {[%clk 0:01:56.8]} 19. Bc3 {[%clk
0:01:32.4]} 19... Bh6 {[%clk 0:01:45.4]} 20. a4 {[%clk 0:01:27.8]} 20... Nh5
{[%clk 0:01:33.1]} 21. a5 {[%clk 0:01:25]} 21... Rd6 {[%clk 0:01:29.7]} 22. axb6
{[%clk 0:01:18.1]} 22... Rxb6 {[%clk 0:01:30.6]} 23. Qa2 {[%clk 0:01:12.7]}
23... Rcb8 {[%clk 0:01:29.3]} 24. Rxb6 {[%clk 0:01:08.7]} 24... axb6 {[%clk
0:01:29.6]} 25. Re1 {[%clk 0:00:55.1]} 25... Be3 {[%clk 0:01:08.3]} 26. Kf1
{[%clk 0:00:27.7]} 26... Nxg3+ {[%clk 0:01:05.2]} 27. fxg3 {[%clk 0:00:21.6]}
27... Qf5+ {[%clk 0:01:05.4]} 28. Bf3 {[%clk 0:00:21.6]} 28... Qxh3+ {[%clk
0:01:05.8]} 29. Bg2 {[%clk 0:00:20.9]} 29... Qxg3 {[%clk 0:01:02.6]} 0-1